fUSD/lending_fUSD_20260509
["ID","MTS","AMOUNT","RATE_DAILY","PERIOD"]
[421885443,1778286347000,425.0,0.00030137,120]
[421885444,1778286416000,-205.53552278,0.00013411,2]
[421885447,1778286632000,-324.93,0.00012909,2]
[421885448,1778286632000,-500.0,0.00012934,2]
[421885449,1778286632000,-762.58617371,0.00012963,2]
[421885452,1778286632000,-660.18447722,0.00013411,2]
[421885451,1778286632000,-722.78653263,0.00012963,2]
[421885455,1778286632000,-150.0,0.00013488,2]
[421885450,1778286632000,-514.62729366,0.00012963,2]
[421885454,1778286632000,-300.0,0.00013487,2]
[421885457,1778286632000,-150.0,0.00013488,2]
[421885456,1778286632000,-150.0,0.00013488,2]
[421885459,1778286632000,-150.0,0.00013488,2]
[421885460,1778286632000,-150.0,0.00013488,2]
[421885458,1778286632000,-150.0,0.00013488,2]
[421885461,1778286632000,-139.40139708,0.00013488,2]
[421885453,1778286632000,-1200.0,0.00013487,2]
[421885480,1778286638000,-500.0,0.00013684,2]
[421885475,1778286638000,-843.35,0.00013608,2]
[421885485,1778286638000,-500.0,0.00013684,2]
[421885471,1778286638000,-1565.13690865,0.00013598,2]
[421885472,1778286638000,-380.52932165,0.00013598,2]
[421885473,1778286638000,-1304.97430312,0.00013598,2]
[421885467,1778286638000,-150.0,0.00013597,2]
[421885468,1778286638000,-188.40139708,0.00013598,2]
[421885469,1778286638000,-9749.04203334,0.00013598,2]
[421885466,1778286638000,-150.0,0.00013563,2]
[421885465,1778286638000,-10.59860292,0.00013488,2]
[421885479,1778286638000,-500.0,0.00013684,2]
[421885470,1778286638000,-15602.60766204,0.00013598,2]
[421885477,1778286638000,-388.08802967,0.00013684,2]
[421885483,1778286638000,-500.0,0.00013684,2]
[421885493,1778286638000,-500.0,0.00013684,2]
[421885478,1778286638000,-301.25591179,0.00013684,2]
[421885494,1778286638000,-50.80130697,0.00013684,2]
[421885491,1778286638000,-119.95507357,0.00013684,2]
[421885489,1778286638000,-500.0,0.00013684,2]
[421885487,1778286638000,-500.0,0.00013684,2]
[421885490,1778286638000,-380.04492643,0.00013684,2]
[421885492,1778286638000,-500.0,0.00013684,2]
[421885486,1778286638000,-500.0,0.00013684,2]
[421885484,1778286638000,-563.69205985,0.00013684,2]
[421885476,1778286638000,-150.0,0.00013638,2]
[421885481,1778286638000,-500.0,0.00013684,2]
[421885482,1778286638000,-500.0,0.00013684,2]
[421885474,1778286638000,-1606.09,0.00013608,2]
[421885488,1778286638000,-323.50476914,0.00013684,2]
[421885724,1778286640000,-402.40644257,0.00013685,2]
[421885699,1778286640000,-198.79326129,0.00013684,2]
[421885702,1778286640000,-301.20673871,0.00013684,2]
[421885704,1778286640000,-210.74983321,0.00013684,2]
[421885693,1778286640000,-449.19869303,0.00013684,2]
[421885707,1778286640000,-289.25016679,0.00013684,2]
[421885717,1778286640000,-8943.78386462,0.00013685,2]
[421885695,1778286640000,-500.0,0.00013684,2]
[421885711,1778286640000,-500.0,0.00013684,2]
[421885727,1778286640000,-2270.71750262,0.00013685,2]
[421885721,1778286640000,-1099.0,0.00013685,2]
[421885712,1778286640000,-7533.83961403,0.00013685,2]
[421885709,1778286640000,-500.0,0.00013684,2]
[421885697,1778286640000,-168.31287371,0.00013684,2]
[421885752,1778286640000,-7952.66166017,0.00013685,2]
[421885784,1778286640000,-27927.91751525,0.00013685,2]
[421885719,1778286640000,-9077.54866152,0.00013685,2]
[421885715,1778286640000,-8947.21879473,0.00013685,2]
[421885847,1778286643000,-1243.73843092,0.00013685,2]
[421885848,1778286643000,-1.89989487,0.00013685,2]
[421885879,1778286646000,-6486.69601608,0.00013685,2]
[421885878,1778286646000,-26043.30398392,0.00013685,2]
[421885877,1778286646000,-40266.45593122,0.00013685,2]
[421885876,1778286646000,-130791.19355146,0.00013685,2]
[421885873,1778286646000,-561.499995,0.00013685,2]
[421885875,1778286646000,-4459.57730191,0.00013685,2]
[421885874,1778286646000,-793.1136,0.00013685,2]
[421885899,1778287100000,969.22,0.0001,2]
[421885900,1778287105000,775.38,0.0001,2]
[421885951,1778287832000,-150.0,0.00013928,2]
[421885936,1778287832000,-35850.7357,0.00013585,2]
[421885942,1778287832000,-169.44,0.00013699,2]
[421885934,1778287832000,-4290.8478,0.00013585,2]
[421885929,1778287832000,-150.0,0.00013488,2]
[421885932,1778287832000,-150.0,0.00013576,2]
[421885943,1778287832000,-200.0,0.00013699,2]
[421885930,1778287832000,-150.0,0.00013496,2]
[421885927,1778287832000,-257.30809877,0.00013488,2]
[421885949,1778287832000,-3087.51874553,0.000139,2]
[421885953,1778287832000,-34094.01730636,0.0001399,2]
[421885977,1778287832000,-151.0,0.00014229,2]
[421885945,1778287832000,-150.0,0.00013752,2]
[421885947,1778287832000,-150.0,0.0001384,2]
[421885937,1778287832000,-150.0,0.00013664,2]
[421885955,1778287832000,-250.0,0.00014,2]
[421885957,1778287832000,-150.0,0.00014017,2]
[421885959,1778287832000,-150.0,0.00014105,2]
[421885965,1778287832000,-151.0,0.00014229,2]
[421885963,1778287832000,-151.0,0.00014229,2]
[421885969,1778287832000,-151.0,0.00014229,2]
[421885926,1778287832000,-150.0,0.00013488,2]
[421885939,1778287832000,-2203.8946744,0.00013677,2]
[421885923,1778287832000,-500.0,0.00013487,2]
[421885901,1778287832000,-163.96,0.00012974,2]
[421885928,1778287832000,-150.0,0.00013488,2]
[421885906,1778287832000,-300.0,0.00013318,2]
[421885905,1778287832000,-1200.0,0.00013318,2]
[421885907,1778287832000,-3976.56093304,0.00013319,2]
[421885904,1778287832000,-172.8,0.00013313,2]
[421885903,1778287832000,-200.0,0.00013308,2]
[421885909,1778287832000,-175073.47409962,0.00013319,2]
[421885910,1778287832000,-162.46,0.00013458,2]
[421885908,1778287832000,-648.73496734,0.00013319,2]
[421885911,1778287832000,-2000.0,0.0001347,2]
[421885914,1778287832000,-500.0,0.00013487,2]
[421885915,1778287832000,-523.20356822,0.00013487,2]
[421885912,1778287832000,-9918.60329073,0.00013473,2]
[421885913,1778287832000,-150.0,0.00013476,2]
[421885916,1778287832000,-500.0,0.00013487,2]
[421885917,1778287832000,-500.0,0.00013487,2]
[421885918,1778287832000,-500.0,0.00013487,2]
[421885920,1778287832000,-500.0,0.00013487,2]
[421885919,1778287832000,-500.0,0.00013487,2]
[421885921,1778287832000,-500.0,0.00013487,2]
[421885922,1778287832000,-500.0,0.00013487,2]
[421885924,1778287832000,-500.0,0.00013487,2]
[421885925,1778287832000,-150.0,0.00013488,2]
[421885961,1778287832000,-150.0,0.00014193,2]
[421885902,1778287832000,-250.0,0.00013141,2]
[421885975,1778287832000,-161.90805134,0.00014229,2]
[421886004,1778287832000,-217.17691746,0.00014451,2]
[421886003,1778287832000,-500.0,0.00014451,2]
[421886005,1778287832000,-150.0,0.00014451,2]
[421886006,1778287832000,-150.0,0.00014451,2]
[421886007,1778287832000,-150.0,0.00014451,2]
[421886008,1778287832000,-294.8453287,0.00014451,2]
[421886002,1778287832000,-500.0,0.00014451,2]
[421886010,1778287832000,-500.0,0.00014451,2]
[421886011,1778287832000,-500.0,0.00014451,2]
[421886012,1778287832000,-500.0,0.00014451,2]
[421886001,1778287832000,-500.0,0.00014451,2]
[421886017,1778287832000,-255.0,0.00014617,2]
[421886016,1778287832000,-150.0,0.00014546,2]
[421886013,1778287832000,-500.0,0.00014451,2]
[421886014,1778287832000,-217.6068267,0.00014451,2]
[421886022,1778287832000,-150.0,0.00014722,2]
[421886020,1778287832000,-13138.44199279,0.000147,2]
[421886018,1778287832000,-150.0,0.00014634,2]
[421886019,1778287832000,-1680.0,0.00014649,2]
[421886021,1778287832000,-944.394,0.000147,2]
[421886023,1778287832000,-489.46832834,0.00014733,2]
[421885971,1778287832000,-151.0,0.00014229,2]
[421886015,1778287832000,-150.0,0.00014457,2]
[421886000,1778287832000,-9918.60329066,0.00014437,2]
[421886009,1778287832000,-500.0,0.00014451,2]
[421885995,1778287832000,-150.0,0.00014237,2]
[421885976,1778287832000,-151.0,0.00014229,2]
[421885967,1778287832000,-151.0,0.00014229,2]
[421885999,1778287832000,-169.44,0.00014384,2]
[421885978,1778287832000,-151.0,0.00014229,2]
[421885980,1778287832000,-151.0,0.00014229,2]
[421885979,1778287832000,-151.0,0.00014229,2]
[421885983,1778287832000,-500.0,0.00014229,2]
[421885989,1778287832000,-151.0,0.00014229,2]
[421885990,1778287832000,-151.0,0.00014229,2]
[421885982,1778287832000,-151.0,0.00014229,2]
[421885984,1778287832000,-151.0,0.00014229,2]
[421885981,1778287832000,-151.0,0.00014229,2]
[421885973,1778287832000,-151.0,0.00014229,2]
[421885986,1778287832000,-151.0,0.00014229,2]
[421885988,1778287832000,-151.0,0.00014229,2]
[421885994,1778287832000,-2080.17592889,0.00014229,2]
[421885997,1778287832000,-150.0,0.00014281,2]
[421885993,1778287832000,-151.0,0.00014229,2]
[421885998,1778287832000,-150.0,0.00014369,2]
[421885992,1778287832000,-151.0,0.00014229,2]
[421885991,1778287832000,-151.0,0.00014229,2]
[421885985,1778287832000,-151.0,0.00014229,2]
[421885987,1778287832000,-151.0,0.00014229,2]
[421885996,1778287832000,-250.0,0.00014271,2]
[421886035,1778287833000,-1283.180643,0.000149,2]
[421886044,1778287833000,-500.0,0.00014973,2]
[421886041,1778287833000,-501.1529486,0.0001497,2]
[421886040,1778287833000,-500.0,0.0001497,2]
[421886039,1778287833000,-171.13521385,0.000149,2]
[421886037,1778287833000,-2555.04946954,0.000149,2]
[421886038,1778287833000,-7510.569345,0.000149,2]
[421886036,1778287833000,-596.1199594,0.000149,2]
[421886033,1778287833000,-219.89751825,0.000149,2]
[421886029,1778287833000,-833.33334,0.0001485,2]
[421886032,1778287833000,-150.0,0.00014898,2]
[421886030,1778287833000,-833.33333,0.0001485,2]
[421886028,1778287833000,-150.0,0.0001481,2]
[421886031,1778287833000,-833.33334,0.0001485,2]
[421886027,1778287833000,-152.0,0.000148,7]
[421886026,1778287833000,-17726.68723244,0.00014798,2]
[421886024,1778287833000,-2157.14243826,0.00014777,2]
[421886042,1778287833000,-500.0,0.0001497,2]
[421886034,1778287833000,-5000.0,0.000149,2]
[421886043,1778287833000,-505.68510712,0.00014973,2]
[421886025,1778287833000,-693.47,0.00014784,2]
[421886045,1778287833000,-500.0,0.00014973,2]
[421886046,1778287833000,-500.0,0.00014973,2]
[421886065,1778287833000,-401.78799994,0.00015,2]
[421886064,1778287833000,-500.0,0.00013487,2]
[421886063,1778287833000,-198.21200006,0.00013487,2]
[421886066,1778287833000,-312.7,0.00015,2]
[421886060,1778287833000,-58649.45151951,0.00015,2]
[421886061,1778287833000,-5620.07700822,0.00015,2]
[421886059,1778287833000,-164.0,0.00015,2]
[421886058,1778287833000,-150.0,0.00015,2]
[421886056,1778287833000,-374.0,0.00015,5]
[421886062,1778287833000,-301.78799994,0.00013487,2]
[421886054,1778287833000,-300.0,0.00014999,2]
[421886053,1778287833000,-271.66162077,0.00014999,2]
[421886052,1778287833000,-210.87913825,0.00014999,2]
[421886055,1778287833000,-366.0,0.00015,5]
[421886051,1778287833000,-379.75933198,0.0001499,2]
[421886048,1778287833000,-150.0,0.00014986,2]
[421886047,1778287833000,-501.06970518,0.00014973,2]
[421886049,1778287833000,-150.0,0.00014986,2]
[421886050,1778287833000,-150.0,0.00014986,2]
[421886057,1778287833000,-709.0,0.00015,5]
[421886082,1778287838000,-500.0,0.00013487,2]
[421886081,1778287838000,-500.0,0.00013487,2]
[421886075,1778287838000,-500.0,0.00013487,2]
[421886079,1778287838000,-500.0,0.00013487,2]
[421886077,1778287838000,-500.0,0.00013487,2]
[421886070,1778287838000,-500.0,0.00013487,2]
[421886073,1778287838000,-382.59218495,0.00013487,2]
[421886072,1778287838000,-117.40781505,0.00013487,2]
[421886071,1778287838000,-500.0,0.00013487,2]
[421886083,1778287838000,-500.0,0.00013487,2]
[421886074,1778287838000,-500.0,0.00013487,2]
[421886076,1778287838000,-500.0,0.00013487,2]
[421886086,1778287838000,-500.0,0.00013487,2]
[421886078,1778287838000,-500.0,0.00013487,2]
[421886085,1778287838000,-500.0,0.00013487,2]
[421886084,1778287838000,-500.0,0.00013487,2]
[421886094,1778287838000,-426.61846658,0.00015,2]
[421886088,1778287838000,-500.0,0.00013487,2]
[421886093,1778287838000,-30083.38021408,0.00015,2]
[421886092,1778287838000,-8460.0,0.00015,2]
[421886090,1778287838000,-10275.23309056,0.00015,2]
[421886091,1778287838000,-380.52932165,0.00015,2]
[421886089,1778287838000,-8758.96132852,0.000147,2]
[421886087,1778287838000,-500.0,0.00013487,2]
[421886080,1778287838000,-500.0,0.00013487,2]
[421886172,1778287840000,-486.04383556,0.00015,2]
[421886173,1778287840000,-2012.45218495,0.00015,2]
[421886179,1778287846000,-1588.671315,0.00015,2]
[421886178,1778287846000,-47.72085128,0.00015,2]
[421886177,1778287846000,-676.67504966,0.000149,2]
[421886185,1778288258000,620.3,0.0001,2]
[421886186,1778288263000,496.24,0.0001,2]
[421886187,1778288403000,397.0,0.0001,2]
[421886191,1778288428000,-166.76,0.0001375,2]
[421886188,1778288428000,-500.0,0.00013493,2]
[421886189,1778288428000,-1200.0,0.00013493,2]
[421886190,1778288428000,-600.0,0.00013493,2]
[421886197,1778288428000,-300.0,0.00014074,2]
[421886192,1778288428000,-1200.0,0.00013761,2]
[421886194,1778288428000,-490.0,0.00013937,2]
[421886196,1778288428000,-300.0,0.00014074,2]
[421886195,1778288428000,-252.0,0.00014074,2]
[421886193,1778288428000,-2000.0,0.00013762,2]
[421886198,1778288440000,-490.0,0.00014075,2]
[421886199,1778288449000,-151.24,0.00014095,2]
[421886226,1778289032000,-176.27,0.0001424,2]
[421886229,1778289032000,-150.0,0.00014248,2]
[421886227,1778289032000,-200.0,0.00014247,2]
[421886230,1778289032000,-500.0,0.00014249,2]
[421886232,1778289032000,-500.0,0.00014249,2]
[421886228,1778289032000,-2080.17592889,0.00014247,2]
[421886233,1778289032000,-500.0,0.00014249,2]
[421886231,1778289032000,-500.0,0.00014249,2]
[421886236,1778289032000,-500.0,0.00014249,2]
[421886238,1778289032000,-500.0,0.00014249,2]
[421886225,1778289032000,-248.35222574,0.00014179,2]
[421886237,1778289032000,-500.0,0.00014249,2]
[421886234,1778289032000,-500.0,0.00014249,2]
[421886235,1778289032000,-500.0,0.00014249,2]
[421886243,1778289032000,-500.0,0.00014249,2]
[421886241,1778289032000,-500.0,0.00014249,2]
[421886253,1778289032000,-500.0,0.00014249,2]
[421886245,1778289032000,-632.35128076,0.00014249,2]
[421886239,1778289032000,-500.0,0.00014249,2]
[421886222,1778289032000,-516.80872837,0.0001415,2]
[421886219,1778289032000,-381.66093098,0.00014141,2]
[421886223,1778289032000,-26108.09694065,0.0001415,2]
[421886203,1778289032000,-158.25,0.00013409,2]
[421886208,1778289032000,-1100.0,0.00013493,2]
[421886206,1778289032000,-504.5715334,0.00013493,2]
[421886204,1778289032000,-162.46,0.0001344,2]
[421886251,1778289032000,-500.0,0.00014249,2]
[421886205,1778289032000,-202.67823991,0.00013459,2]
[421886209,1778289032000,-250.0,0.0001356,2]
[421886207,1778289032000,-500.0,0.00013493,2]
[421886210,1778289032000,-200.0,0.00013726,2]
[421886211,1778289032000,-211.98,0.000138,2]
[421886212,1778289032000,-392.0,0.00013866,2]
[421886213,1778289032000,-250.0,0.00014,2]
[421886214,1778289032000,-744.54753243,0.00014003,2]
[421886215,1778289032000,-455.45246757,0.00014003,2]
[421886218,1778289032000,-237.4,0.00014095,2]
[421886217,1778289032000,-3069.74584696,0.0001409,2]
[421886216,1778289032000,-392.0,0.00014004,2]
[421886220,1778289032000,-10.33906902,0.00014141,2]
[421886221,1778289032000,-2284.66093098,0.0001415,2]
[421886224,1778289032000,-9512.3881165,0.00014178,2]
[421886247,1778289032000,-500.0,0.00014249,2]
[421886321,1778289032000,-19304.39730819,0.0001475,2]
[421886255,1778289032000,-500.0,0.00014249,2]
[421886294,1778289032000,-45813.42957684,0.0001425,2]
[421886288,1778289032000,-156.587,0.00014249,2]
[421886292,1778289032000,-115063.49717714,0.0001425,2]
[421886298,1778289032000,-392.0,0.00014278,2]
[421886300,1778289032000,-166.37,0.00014331,2]
[421886307,1778289032000,-9512.38811643,0.00014499,2]
[421886305,1778289032000,-9512.38811643,0.00014419,2]
[421886304,1778289032000,-392.0,0.00014415,2]
[421886309,1778289032000,-392.0,0.00014553,2]
[421886311,1778289032000,-9512.38811643,0.00014579,2]
[421886313,1778289032000,-392.0,0.0001469,2]
[421886315,1778289032000,-8758.96132852,0.000147,2]
[421886317,1778289032000,-250.0,0.0001475,2]
[421886323,1778289032000,-3538.0,0.00014753,2]
[421886319,1778289032000,-500.0,0.0001475,2]
[421886325,1778289032000,-19304.39730815,0.00014767,2]
[421886327,1778289032000,-2031.67,0.0001477,2]
[421886329,1778289032000,-500.0,0.00014773,2]
[421886249,1778289032000,-500.0,0.00014249,2]
[421886290,1778289032000,-197.49432318,0.00014249,2]
[421886284,1778289032000,-215.54783624,0.00014249,2]
[421886301,1778289032000,-9512.38811643,0.00014338,2]
[421886286,1778289032000,-151.0,0.00014249,2]
[421886257,1778289032000,-500.0,0.00014249,2]
[421886263,1778289032000,-500.0,0.00014249,2]
[421886260,1778289032000,-500.0,0.00014249,2]
[421886296,1778289032000,-9512.38811643,0.00014258,2]
[421886259,1778289032000,-500.0,0.00014249,2]
[421886264,1778289032000,-500.0,0.00014249,2]
[421886266,1778289032000,-500.0,0.00014249,2]
[421886265,1778289032000,-500.0,0.00014249,2]
[421886270,1778289032000,-500.0,0.00014249,2]
[421886268,1778289032000,-500.0,0.00014249,2]
[421886262,1778289032000,-500.0,0.00014249,2]
[421886269,1778289032000,-500.0,0.00014249,2]
[421886272,1778289032000,-513.23512808,0.00014249,2]
[421886282,1778289032000,-209.40437685,0.00014249,2]
[421886271,1778289032000,-500.0,0.00014249,2]
[421886274,1778289032000,-500.0,0.00014249,2]
[421886276,1778289032000,-499.99999999,0.00014249,2]
[421886280,1778289032000,-151.0,0.00014249,2]
[421886267,1778289032000,-500.0,0.00014249,2]
[421886278,1778289032000,-578.20924308,0.00014249,2]
[421886350,1778289033000,-42545.6551341,0.00014802,2]
[421886351,1778289033000,-6937.4991942,0.00014802,2]
[421886344,1778289033000,-1722.01770313,0.000148,2]
[421886346,1778289033000,-1278.91758444,0.000148,2]
[421886348,1778289033000,-643.59626751,0.000148,2]
[421886337,1778289033000,-19304.39730815,0.00014783,2]
[421886341,1778289033000,-3277.98229687,0.000148,2]
[421886339,1778289033000,-2157.14243826,0.00014795,2]
[421886333,1778289033000,-500.0,0.00014773,2]
[421886331,1778289033000,-500.0,0.00014773,2]
[421886335,1778289033000,-500.0,0.00014773,2]
[421886353,1778289033000,-16626.04977039,0.00014817,2]
[421886349,1778289033000,-19304.39730815,0.000148,2]
[421886352,1778289033000,-2678.34753776,0.00014817,2]
[421886360,1778289033000,-346.219455,0.00014842,2]
[421886356,1778289033000,-271.201074,0.00014833,2]
[421886367,1778289033000,-416.66667,0.0001485,2]
[421886368,1778289033000,-10553.40366146,0.0001485,2]
[421886365,1778289033000,-250.0,0.00014842,2]
[421886364,1778289033000,-2770.0737884,0.00014842,2]
[421886363,1778289033000,-346.219455,0.00014842,2]
[421886366,1778289033000,-416.66666,0.0001485,2]
[421886358,1778289033000,-151.0,0.00014833,2]
[421886361,1778289033000,-346.219455,0.00014842,2]
[421886359,1778289033000,-19304.39730815,0.00014833,2]
[421886354,1778289033000,-392.0,0.00014827,2]
[421886355,1778289033000,-151.0,0.00014833,2]
[421886362,1778289033000,-346.219455,0.00014842,2]
[421886357,1778289033000,-176.248066,0.00014833,2]
[421886377,1778289038000,-489.75651798,0.00014832,2]
[421886373,1778289038000,-1048.02402994,0.00014659,2]
[421886374,1778289038000,-8464.36408649,0.00014659,2]
[421886376,1778289038000,-279.80269495,0.00014832,2]
[421886375,1778289038000,-5839.30755235,0.000147,2]
[421886379,1778289038000,-3810.12198451,0.0001485,2]
[421886380,1778289038000,-380.52932165,0.0001485,2]
[421886381,1778289038000,-2528.48506424,0.0001485,2]
[421886383,1778289038000,-416.66666,0.0001486,2]
[421886384,1778289038000,-500.0,0.00014863,2]
[421886382,1778289038000,-2031.85727629,0.0001485,2]
[421886386,1778289038000,-19304.39730815,0.00014867,2]
[421886385,1778289038000,-1100.0,0.00014863,2]
[421886388,1778289038000,-151.0,0.00014867,2]
[421886387,1778289038000,-151.0,0.00014867,2]
[421886389,1778289038000,-151.0,0.00014867,2]
[421886390,1778289038000,-151.0,0.00014867,2]
[421886378,1778289038000,-151.0,0.00014842,2]
[421886401,1778289039000,-500.0,0.00014899,2]
[421886403,1778289039000,-500.0,0.00014899,2]
[421886400,1778289039000,-500.0,0.00014899,2]
[421886392,1778289039000,-151.0,0.00014867,2]
[421886399,1778289039000,-300.0,0.00014899,2]
[421886395,1778289039000,-151.0,0.00014867,2]
[421886396,1778289039000,-19304.39730815,0.00014883,2]
[421886394,1778289039000,-151.0,0.00014867,2]
[421886393,1778289039000,-151.0,0.00014867,2]
[421886402,1778289039000,-500.0,0.00014899,2]
[421886398,1778289039000,-300.0,0.00014899,2]
[421886404,1778289039000,-500.0,0.00014899,2]
[421886391,1778289039000,-151.0,0.00014867,2]
[421886409,1778289039000,-500.0,0.00014899,2]
[421886406,1778289039000,-500.0,0.00014899,2]
[421886418,1778289039000,-547.4565743,0.000149,2]
[421886417,1778289039000,-1765122.15495415,0.000149,2]
[421886416,1778289039000,-219.89751825,0.000149,2]
[421886413,1778289039000,-500.0,0.00014899,2]
[421886412,1778289039000,-500.0,0.00014899,2]
[421886397,1778289039000,-484.233804,0.0001489,2]
[421886415,1778289039000,-150.0,0.000149,2]
[421886410,1778289039000,-500.0,0.00014899,2]
[421886411,1778289039000,-500.0,0.00014899,2]
[421886408,1778289039000,-500.0,0.00014899,2]
[421886405,1778289039000,-500.0,0.00014899,2]
[421886414,1778289039000,-570.0,0.000149,5]
[421886407,1778289039000,-500.0,0.00014899,2]
[421886423,1778289040000,-305.64098964,0.0001474,2]
[421886427,1778289041000,-731.66654357,0.0001474,2]
[421886426,1778289041000,-1402.17,0.0001474,2]
[421886425,1778289041000,-338.004,0.0001474,2]
[421886424,1778289041000,-2193.198547,0.0001474,2]
[421886429,1778289043000,-2121.80929683,0.000147,2]
[421886431,1778289043000,-4541.70803622,0.0001474,2]
[421886432,1778289043000,-34189.72955904,0.000149,2]
[421886433,1778289043000,-1197.29978629,0.000149,2]
[421886434,1778289043000,-373.8201809,0.000149,2]
[421886430,1778289043000,-1771.06240474,0.000147,2]
[421886445,1778289046000,-3921.84167345,0.0001482,2]
[421886442,1778289046000,-152.0,0.0001481,7]
[421886444,1778289046000,-1310.97718208,0.0001482,2]
[421886443,1778289046000,-152.0,0.0001481,7]
[421886441,1778289046000,-6488.11950261,0.000147,2]
[421886446,1778289047000,-1648.03734998,0.0001482,2]
[421886482,1778289270000,232.93,6.99e-05,2]
[421886483,1778289271000,232.93,7.357e-05,2]
[421886484,1778289271000,232.93,7.725e-05,2]
[421886485,1778289271000,232.93,8.093e-05,2]
[421886486,1778289271000,232.93,8.461e-05,2]
[421886487,1778289271000,232.93,8.829e-05,2]
[421886490,1778289272000,232.93,9.932e-05,2]
[421886489,1778289272000,232.93,9.565e-05,2]
[421886488,1778289272000,232.93,9.197e-05,2]
[421886492,1778289276000,-138.60264385,0.00010668,2]
[421886491,1778289276000,-232.93,0.000103,2]
[421886493,1778289285000,199.39044685,0.00012495,30]
[421886494,1778289430000,381.28885,0.0003013,120]
[421886495,1778289782000,1000.0,0.0003013,120]
[421886497,1778290016000,-112.57339256,0.00011036,2]
[421886496,1778290016000,-94.32735615,0.00010668,2]
[421886499,1778290176000,-232.93,0.00011404,2]
[421886501,1778290176000,-79.57621509,0.00011556,2]
[421886500,1778290176000,-150.0,0.00011442,2]
[421886498,1778290176000,-120.35660744,0.00011036,2]
[421886502,1778290228000,867.279,0.00030137,120]
[421886529,1778290231000,-232.93,0.0001214,2]
[421886521,1778290231000,-70.42378491,0.00011556,2]
[421886524,1778290231000,-153.12137068,0.00011676,2]
[421886522,1778290231000,-163.31,0.00011556,2]
[421886526,1778290231000,-232.93,0.00011772,2]
[421886525,1778290231000,-1200.0,0.00011734,2]
[421886527,1778290231000,-150.0,0.00011782,2]
[421886528,1778290231000,-184.0,0.00011895,2]
[421886530,1778290231000,-250.0,0.0001214,2]
[421886523,1778290231000,-150.0,0.00011669,2]
[421886532,1778290231000,-402.65,0.00012193,2]
[421886531,1778290231000,-250.0,0.0001214,2]
[421886533,1778290231000,-2000.0,0.00012282,2]
[421886537,1778290231000,-250.0,0.0001269,2]
[421886536,1778290231000,-180.33,0.00012594,2]
[421886538,1778290231000,-150.0,0.00012833,2]
[421886535,1778290231000,-164.88,0.00012558,2]
[421886539,1778290231000,-500.0,0.00012834,2]
[421886541,1778290231000,-151.0,0.00012834,2]
[421886540,1778290231000,-200.0,0.00012834,2]
[421886534,1778290231000,-232.93,0.00012507,2]
[421886613,1778290232000,-150.0,0.00013488,2]
[421886615,1778290232000,-1000.0,0.00013493,2]
[421886606,1778290232000,-200.0,0.00013382,2]
[421886608,1778290232000,-150.0,0.00013488,2]
[421886607,1778290232000,-2157.14243826,0.00013382,2]
[421886600,1778290232000,-232.93,0.00012875,2]
[421886604,1778290232000,-180.33,0.00013223,2]
[421886602,1778290232000,-152.0,0.0001297,3]
[421886611,1778290232000,-150.0,0.00013488,2]
[421886603,1778290232000,-500.0,0.00013108,2]
[421886605,1778290232000,-232.93,0.00013243,2]
[421886610,1778290232000,-150.0,0.00013488,2]
[421886616,1778290232000,-152.0,0.00013508,4]